fUST/lending_fUST_20250121
["ID","MTS","AMOUNT","RATE_DAILY","PERIOD"]
[349784831,1737426644167,-336.55006725,0.00022191,3]
[349784832,1737426644178,-607.72,0.00022191,3]
[349784833,1737426644187,-500.0,0.00022191,3]
[349784834,1737426644197,-500.0,0.00022191,3]
[349784835,1737426644207,-508.16807892,0.00022191,3]
[349784836,1737426644216,-609.79,0.00022191,3]
[349784837,1737426644226,-500.0,0.00022191,3]
[349784838,1737426644236,-500.0,0.00022191,3]
[349784839,1737426644245,-500.0,0.00022191,3]
[349784840,1737426644255,-500.0,0.00022191,3]
[349784841,1737426644264,-1544.21,0.00022191,3]
[349784842,1737426644274,-518.01,0.00022191,3]
[349784843,1737426644283,-500.0,0.00022191,3]
[349784844,1737426644293,-500.0,0.00022191,3]
[349784845,1737426644302,-500.0,0.00022191,3]
[349784846,1737426644311,-1838.18,0.00022191,3]
[349784847,1737426644321,-1095.31,0.00022191,3]
[349784848,1737426644331,-500.0,0.00022191,3]
[349784849,1737426644340,-500.0,0.00022191,3]
[349784850,1737426644350,-1106.62,0.00022191,3]
[349784851,1737426644361,-500.0,0.00022191,3]
[349784852,1737426644370,-500.0,0.00022191,3]
[349784853,1737426644380,-500.0,0.00022191,3]
[349784854,1737426644390,-500.0,0.00022191,3]
[349784855,1737426644400,-500.0,0.00022191,3]
[349784856,1737426644410,-477.86313217,0.00022191,3]
[349784857,1737426644419,-691.85,0.00022191,3]
[349784858,1737426644429,-585.12971178,0.00022191,3]
[349784859,1737426644438,-1322.65,0.00022191,3]
[349784860,1737426644448,-500.0,0.00022191,3]
[349784861,1737426644457,-500.0,0.00022191,3]
[349784862,1737426644467,-879.57,0.00022191,3]
[349784863,1737426644477,-500.0,0.00022191,3]
[349784864,1737426644486,-937.76,0.00022191,3]
[349784865,1737426644496,-500.0,0.00022191,3]
[349784866,1737426644505,-500.0,0.00022191,3]
[349784867,1737426644515,-895.51,0.00022191,3]
[349784868,1737426644524,-1624.46,0.00022191,3]
[349784869,1737426644533,-500.0,0.00022191,3]
[349784870,1737426644543,-926.26,0.00022191,3]
[349784871,1737426644552,-500.0,0.00022191,3]
[349784872,1737426644561,-500.0,0.00022191,3]
[349784873,1737426644571,-500.0,0.00022191,3]
[349784874,1737426644581,-500.0,0.00022191,3]
[349784875,1737426644590,-500.0,0.00022191,3]
[349784876,1737426644600,-500.0,0.00022191,3]
[349784877,1737426644609,-253.76768368,0.00022191,3]
[349784878,1737426644619,-748.07,0.00022191,3]
[349784879,1737426644628,-500.0,0.00022191,3]
[349784880,1737426644637,-878.59,0.00022191,3]
[349784881,1737426644649,-500.0,0.00022191,3]
[349784882,1737426644659,-500.0,0.00022191,3]
[349784883,1737426644668,-500.0,0.00022191,3]
[349784884,1737426644677,-500.0,0.00022191,3]
[349784885,1737426644686,-910.02,0.00022191,3]
[349784886,1737426644695,-500.0,0.00022191,3]
[349784887,1737426644704,-500.0,0.00022191,3]
[349784888,1737426644713,-529.02,0.00022191,3]
[349784889,1737426644722,-500.0,0.00022191,3]
[349784890,1737426644732,-500.0,0.00022191,3]
[349784891,1737426644741,-500.0,0.00022191,3]
[349784892,1737426644750,-500.0,0.00022191,3]
[349784893,1737426644759,-500.0,0.00022191,3]
[349784894,1737426644770,-500.0,0.00022191,3]
[349784895,1737426644780,-1094.19,0.00022191,3]
[349784896,1737426644790,-510.19438406,0.00022191,3]
[349784897,1737426644799,-500.0,0.00022191,3]
[349784898,1737426644808,-1125.0,0.00022191,3]
[349784899,1737426644818,-500.0,0.00022191,3]
[349784900,1737426644827,-401.42517882,0.00022191,3]
[349784901,1737426644836,-740.37,0.00022191,3]
[349784902,1737426644845,-1337.12,0.00022191,3]
[349784903,1737426644854,-623.32189292,0.00022191,3]
[349784904,1737426644863,-530.44938497,0.00022191,3]
[349784905,1737426644872,-500.0,0.00022191,3]
[349784906,1737426644881,-500.0,0.00022191,3]
[349784907,1737426644893,-500.0,0.00022191,3]
[349784908,1737426644902,-525.87913062,0.00022191,3]
[349784909,1737426644911,-538.18,0.00022191,3]
[349784910,1737426644920,-749.3,0.00022191,3]
[349784911,1737426644930,-860.9,0.00022191,3]
[349784912,1737426644939,-915.43,0.00022191,3]
[349784913,1737426644948,-717.99,0.00022191,3]
[349784914,1737426644957,-500.0,0.00022191,3]
[349784915,1737426644969,-500.0,0.00022191,3]
[349784916,1737426644978,-527.7,0.00022191,3]
[349784917,1737426644987,-500.0,0.00022191,3]
[349784918,1737426644997,-500.0,0.00022191,3]
[349784919,1737426645008,-500.0,0.00022191,3]
[349784920,1737426645017,-500.0,0.00022191,3]
[349784921,1737426645027,-498.15855385,0.00022191,3]
[349784922,1737426645038,-500.0,0.00022191,3]
[349784923,1737426645047,-1797.1,0.00022191,3]
[349784924,1737426645056,-1008.89,0.00022191,3]
[349784925,1737426645065,-2363.03,0.00022191,2]
[349784926,1737426645074,-500.0,0.00022191,3]
[349784927,1737426645084,-500.0,0.00022191,3]
[349784928,1737426645093,-5146.9,0.00022191,3]
[349784929,1737426645102,-594.4,0.00022191,3]
[349784930,1737426645112,-1763.19,0.00022191,3]
[349784931,1737426645121,-500.0,0.00022191,3]
[349784932,1737426645130,-500.0,0.00022191,3]
[349784933,1737426645139,-13527.49,0.00022191,3]
[349784934,1737426645149,-542.57,0.00022191,3]
[349784935,1737426645158,-500.0,0.00022191,3]
[349784936,1737426645168,-500.0,0.00022191,3]
[349784937,1737426645177,-9704.14,0.00022191,3]
[349784938,1737426645187,-500.0,0.00022191,3]
[349784939,1737426645196,-500.0,0.00022191,3]
[349784940,1737426645206,-848.02,0.00022191,3]
[349784941,1737426645215,-793.6,0.00022191,3]
[349784942,1737426645225,-500.0,0.00022191,2]
[349784943,1737426645234,-305.0461941,0.00022191,3]
[349784944,1737426645244,-500.0,0.00022191,3]
[349784945,1737426645253,-500.0,0.00022191,3]
[349784946,1737426645263,-790.6,0.00022191,3]
[349784947,1737426645273,-500.0,0.00022191,3]
[349784948,1737426645282,-500.0,0.00022191,3]
[349784949,1737426645292,-500.0,0.00022191,3]
[349784950,1737426645302,-500.0,0.00022191,3]
[349784951,1737426645312,-500.0,0.00022191,3]
[349784952,1737426645321,-4657.41,0.00022191,3]
[349784953,1737426645330,-500.0,0.00022191,3]
[349784954,1737426645339,-10645.52,0.00022191,3]
[349784955,1737426645349,-500.0,0.00022191,3]
[349784956,1737426645359,-500.0,0.00022191,3]
[349784957,1737426645368,-500.0,0.00022191,3]
[349784958,1737426645378,-1080.68,0.00022191,3]
[349784959,1737426645388,-3365.86,0.00022191,3]
[349784960,1737426645399,-500.0,0.00022191,3]
[349784961,1737426645408,-858.51,0.00022191,3]
[349784962,1737426645418,-500.0,0.00022191,3]
[349784963,1737426645427,-1608.96,0.00022191,3]
[349784964,1737426645437,-915.63,0.00022191,3]
[349784965,1737426645446,-1944.61,0.00022191,3]
[349784966,1737426645455,-500.0,0.00022191,3]
[349784967,1737426645464,-500.0,0.00022191,3]
[349784968,1737426645474,-812.47,0.00022191,3]
[349784969,1737426645483,-500.0,0.00022191,3]
[349784970,1737426645492,-500.0,0.00022191,3]
[349784971,1737426645501,-1628.29,0.00022191,3]
[349784972,1737426645510,-500.0,0.00022191,3]
[349784973,1737426645520,-644.11,0.00022191,3]
[349784974,1737426645529,-500.0,0.00022191,3]
[349784975,1737426645538,-500.0,0.00022191,3]
[349784976,1737426645547,-500.0,0.00022191,3]
[349784977,1737426645556,-500.0,0.00022191,3]
[349784978,1737426645567,-1360.32,0.00022191,3]
[349784979,1737426645576,-500.0,0.00022191,3]
[349784980,1737426645585,-933.1,0.00022191,3]
[349784981,1737426645595,-500.0,0.00022191,3]
[349784982,1737426645604,-500.0,0.00022191,3]
[349784983,1737426645614,-507.59270346,0.00022191,3]
[349784984,1737426645623,-1140.59,0.00022191,3]
[349784985,1737426645632,-1077.41,0.00022191,3]
[349784986,1737426645643,-13759.94,0.00022191,3]
[349784987,1737426645652,-1021.91,0.00022191,3]
[349784988,1737426645661,-500.0,0.00022191,3]
[349784989,1737426645670,-1550.04,0.00022191,3]
[349784990,1737426645680,-2704.04,0.00022191,3]
[349784991,1737426645689,-500.0,0.00022191,3]
[349784992,1737426645839,-500.0,0.00022191,3]
[349784993,1737426645849,-714.36,0.00022191,3]
[349784994,1737426645859,-500.0,0.00022191,3]
[349784995,1737426645868,-500.0,0.00022191,3]
[349784996,1737426645877,-1914.83,0.00022191,3]
[349784997,1737426645887,-500.0,0.00022191,3]
[349784998,1737426645899,-931.03,0.00022191,3]
[349784999,1737426645908,-4795.93,0.00022191,3]
[349785000,1737426645917,-500.0,0.00022191,3]
[349785001,1737426645926,-4234.28,0.00022191,3]
[349785002,1737426645935,-3542.61,0.00022191,3]
[349785003,1737426645945,-500.0,0.00022191,3]
[349785004,1737426645958,-508.23279982,0.00022191,3]
[349785005,1737426645967,-500.0,0.00022191,3]
[349785006,1737426645979,-8675.8,0.00022191,3]
[349785007,1737426645993,-500.0,0.00022191,3]
[349785008,1737426646002,-2200.0,0.00022191,3]
[349785009,1737426646012,-2085.5,0.00022191,3]
[349785010,1737426646021,-500.0,0.00022191,3]
[349785011,1737426646032,-500.0,0.00022191,3]
[349785012,1737426646042,-500.0,0.00022191,3]
[349785013,1737426646051,-500.0,0.00022191,3]
[349785014,1737426646060,-370.44774869,0.00022191,3]
[349785015,1737426646070,-1517.04,0.00022191,3]
[349785016,1737426646079,-584.13,0.00022191,3]
[349785017,1737426646089,-500.0,0.00022191,3]
[349785018,1737426646098,-7258.81,0.00022191,3]
[349785019,1737426646108,-505.04432401,0.00022191,3]
[349785020,1737426646117,-500.0,0.00022191,3]
[349785021,1737426646127,-500.0,0.00022191,3]
[349785022,1737426646137,-500.0,0.00022191,3]
[349785023,1737426646147,-500.0,0.00022191,3]
[349785025,1737426646156,-48036.61,0.00022191,3]
[349785027,1737426646166,-825.47,0.00022191,3]
[349785028,1737426646175,-2003.5,0.00022191,3]
[349785029,1737426646185,-511.4712404,0.00022191,3]
[349785030,1737426646195,-2317.95,0.00022191,3]
[349785031,1737426646204,-500.0,0.00022191,3]
[349785032,1737426646213,-4115.87,0.00022191,3]
[349785033,1737426646225,-820.83,0.00022191,3]
[349785034,1737426646234,-599.04,0.00022191,3]
[349785035,1737426646244,-608.51,0.00022191,3]
[349785036,1737426646254,-500.0,0.00022191,3]
[349785038,1737426646263,-764.92,0.00022191,3]
[349785040,1737426646273,-1730.06,0.00022191,3]
[349785041,1737426646282,-500.0,0.00022191,3]
[349785042,1737426646291,-2424.69,0.00022191,3]
[349785043,1737426646301,-500.0,0.00022191,3]
[349785044,1737426646310,-13090.41,0.000222,2]
[349785045,1737426646319,-151.0,0.000222,8]
[349785046,1737426646328,-336.0,0.000223,10]
[349785047,1737426646338,-151.0,0.000223,7]
[349785048,1737426646347,-300.8,0.0002232,6]
[349785049,1737426646357,-502.03073872,0.00022328,3]
[349785051,1737426646366,-927.64807153,0.00022328,3]
[349785052,1737426646376,-832.0,0.00022328,3]
[349785053,1737426646386,-500.0,0.00022328,3]
[349785054,1737426646397,-500.0,0.00022328,3]
[349785055,1737426646406,-500.0,0.00022328,3]
[349785056,1737426646416,-500.0,0.00022328,3]
[349785058,1737426646426,-614.4,0.00022328,3]
[349785059,1737426646436,-500.0,0.00022328,3]
[349785060,1737426646445,-329.73074891,0.00022328,3]
[349785061,1737426646455,-500.0,0.00022328,3]
[349785062,1737426646465,-500.0,0.00022328,3]
[349785063,1737426646474,-500.0,0.00022328,3]
[349785064,1737426646484,-500.0,0.00022328,3]
[349785065,1737426646494,-500.0,0.00022328,3]
[349785066,1737426646503,-500.0,0.00022328,3]
[349785067,1737426646512,-500.0,0.00022328,3]
[349785068,1737426646522,-500.0,0.00022328,3]
[349785069,1737426646532,-500.0,0.00022328,3]
[349785070,1737426646541,-304.28016776,0.00022328,3]
[349785071,1737426646551,-516.05477437,0.00022328,3]
[349785072,1737426646560,-500.0,0.00022328,3]
[349785073,1737426646569,-356.99764739,0.00022328,3]
[349785074,1737426646579,-506.23092005,0.00022328,3]
[349785075,1737426646589,-500.0,0.00022328,3]
[349785076,1737426646598,-500.0,0.00022328,3]
[349785077,1737426646607,-500.0,0.00022328,3]
[349785078,1737426646617,-500.0,0.00022328,3]
[349785079,1737426646626,-500.0,0.00022328,3]
[349785080,1737426646637,-500.0,0.00022328,3]
[349785081,1737426646647,-500.0,0.00022328,3]
[349785082,1737426646656,-511.91915182,0.00022328,3]
[349785083,1737426646665,-500.0,0.00022328,3]
[349785084,1737426646675,-500.0,0.00022328,3]
[349785085,1737426646684,-500.0,0.00022328,3]
[349785086,1737426646693,-500.0,0.00022328,3]
[349785087,1737426646702,-500.0,0.00022328,3]
[349785088,1737426646711,-500.0,0.00022328,3]
[349785090,1737426646721,-500.0,0.00022328,3]
[349785092,1737426646730,-500.0,0.00022328,3]
[349785093,1737426646739,-500.0,0.00022328,3]
[349785094,1737426646748,-1031.46,0.00022328,3]
[349785095,1737426646757,-500.0,0.00022328,3]
[349785096,1737426646766,-500.0,0.00022328,3]
[349785097,1737426646775,-500.0,0.00022328,3]
[349785098,1737426646784,-659.41,0.00022328,3]
[349785099,1737426646793,-500.0,0.00022328,3]
[349785100,1737426646802,-500.0,0.00022328,3]
[349785101,1737426646811,-500.0,0.00022328,3]
[349785102,1737426646821,-500.0,0.00022328,3]
[349785103,1737426646829,-607.72,0.00022328,3]
[349785104,1737426646839,-500.0,0.00022328,3]
[349785105,1737426646848,-500.0,0.00022328,3]
[349785106,1737426646857,-609.79,0.00022328,3]
[349785107,1737426646867,-500.0,0.00022328,3]
[349785108,1737426646876,-500.0,0.00022328,3]
[349785109,1737426646886,-500.0,0.00022328,3]
[349785110,1737426646898,-500.0,0.00022328,3]
[349785111,1737426646908,-1544.21,0.00022328,3]
[349785112,1737426646917,-518.01,0.00022328,3]
[349785113,1737426646928,-500.0,0.00022328,3]
[349785114,1737426646938,-500.0,0.00022328,3]
[349785115,1737426646947,-500.0,0.00022328,3]
[349785116,1737426646960,-1838.18,0.00022328,3]
[349785117,1737426646968,-1095.31,0.00022328,3]
[349785118,1737426646978,-500.0,0.00022328,3]
[349785119,1737426646987,-339.37298378,0.00022328,3]
[349785120,1737426646998,-1106.62,0.00022328,3]
[349785121,1737426647007,-500.0,0.00022328,3]
[349785122,1737426647017,-500.0,0.00022328,3]
[349785123,1737426647027,-500.0,0.00022328,3]
[349785124,1737426647039,-500.0,0.00022328,3]
[349785125,1737426647049,-500.0,0.00022328,3]
[349785126,1737426647059,-691.85,0.00022328,3]
[349785127,1737426647069,-1322.65,0.00022328,3]
[349785128,1737426647078,-500.0,0.00022328,3]
[349785129,1737426647088,-500.0,0.00022328,3]
[349785130,1737426647098,-879.57,0.00022328,3]
[349785131,1737426647108,-500.0,0.00022328,3]
[349785132,1737426647119,-937.76,0.00022328,3]
[349785133,1737426647128,-500.0,0.00022328,3]
[349785134,1737426647138,-895.51,0.00022328,3]
[349785135,1737426647152,-1624.46,0.00022328,3]
[349785136,1737426647161,-500.0,0.00022328,3]
[349785137,1737426647171,-926.26,0.00022328,3]
[349785138,1737426647181,-500.0,0.00022328,3]
[349785139,1737426647191,-500.0,0.00022328,3]
[349785140,1737426647201,-500.0,0.00022328,3]
[349785141,1737426647211,-500.0,0.00022328,3]
[349785142,1737426647221,-500.0,0.00022328,3]
[349785143,1737426647231,-500.0,0.00022328,3]
[349785144,1737426647240,-748.07,0.00022328,3]
[349785145,1737426647250,-500.0,0.00022328,3]
[349785146,1737426647260,-878.59,0.00022328,3]
[349785147,1737426647269,-500.0,0.00022328,3]
[349785148,1737426647279,-500.0,0.00022328,3]
[349785149,1737426647289,-500.0,0.00022328,3]
[349785150,1737426647298,-500.0,0.00022328,3]
[349785151,1737426647308,-910.02,0.00022328,3]
[349785152,1737426647317,-500.0,0.00022328,3]
[349785153,1737426647327,-500.0,0.00022328,3]
[349785154,1737426647336,-529.02,0.00022328,3]
[349785155,1737426647345,-500.0,0.00022328,3]
[349785156,1737426647355,-500.0,0.00022328,3]
[349785157,1737426647365,-500.0,0.00022328,3]
[349785158,1737426647375,-500.0,0.00022328,3]
[349785159,1737426647384,-500.0,0.00022328,3]
[349785160,1737426647397,-500.0,0.00022328,3]
[349785161,1737426647405,-1094.19,0.00022328,3]
[349785162,1737426647415,-500.0,0.00022328,3]
[349785163,1737426647424,-1125.0,0.00022328,3]
[349785164,1737426647433,-500.0,0.00022328,3]
[349785165,1737426647443,-740.37,0.00022328,3]
[349785166,1737426647452,-1337.12,0.00022328,3]
[349785167,1737426647461,-500.0,0.00022328,3]
[349785168,1737426647471,-500.0,0.00022328,3]
[349785169,1737426647480,-500.0,0.00022328,3]
[349785170,1737426647489,-538.18,0.00022328,3]
[349785171,1737426647498,-749.3,0.00022328,3]
[349785172,1737426647507,-860.9,0.00022328,3]
[349785173,1737426647516,-915.43,0.00022328,3]
[349785174,1737426647525,-717.99,0.00022328,3]
[349785175,1737426647535,-500.0,0.00022328,3]
[349785176,1737426647545,-500.0,0.00022328,3]
[349785177,1737426647554,-527.7,0.00022328,3]
[349785178,1737426647564,-500.0,0.00022328,3]
[349785179,1737426647573,-345.07765355,0.00022328,3]
[349785180,1737426647582,-500.0,0.00022328,3]
[349785181,1737426647592,-500.0,0.00022328,3]
[349785182,1737426647602,-500.0,0.00022328,3]
[349785183,1737426647612,-1797.1,0.00022328,3]
[349785184,1737426647621,-1008.89,0.00022328,3]
[349785185,1737426647631,-2363.03,0.00022328,2]
[349785186,1737426647640,-500.0,0.00022328,3]
[349785187,1737426647652,-500.0,0.00022328,3]
[349785188,1737426647662,-5146.9,0.00022328,3]
[349785189,1737426647671,-594.4,0.00022328,3]
[349785190,1737426647680,-1763.19,0.00022328,3]
[349785191,1737426647689,-500.0,0.00022328,3]
[349785192,1737426647698,-500.0,0.00022328,3]
[349785193,1737426647708,-13527.49,0.00022328,3]
[349785194,1737426647717,-542.57,0.00022328,3]
[349785195,1737426647726,-500.0,0.00022328,3]
[349785196,1737426647736,-500.0,0.00022328,3]
[349785197,1737426647745,-9704.14,0.00022328,3]
[349785198,1737426647754,-500.0,0.00022328,3]
[349785199,1737426647763,-500.0,0.00022328,3]
[349785200,1737426647773,-848.02,0.00022328,3]
[349785201,1737426647782,-793.6,0.00022328,3]
[349785202,1737426647791,-500.0,0.00022328,2]
[349785203,1737426647800,-500.0,0.00022328,3]
[349785204,1737426647809,-500.0,0.00022328,3]
[349785205,1737426647818,-790.6,0.00022328,3]
[349785206,1737426647827,-500.0,0.00022328,3]
[349785207,1737426647837,-500.0,0.00022328,3]
[349785208,1737426647846,-500.0,0.00022328,3]
[349785209,1737426647855,-500.0,0.00022328,3]
[349785210,1737426647864,-500.0,0.00022328,3]
[349785211,1737426647873,-4657.41,0.00022328,3]
[349785212,1737426647883,-509.18335446,0.00022328,3]
[349785213,1737426647892,-10645.52,0.00022328,3]
[349785214,1737426647903,-500.0,0.00022328,3]
[349785215,1737426647913,-500.0,0.00022328,3]
[349785216,1737426647922,-500.0,0.00022328,3]
[349785217,1737426647931,-1080.68,0.00022328,3]
[349785218,1737426647941,-3365.86,0.00022328,3]
[349785219,1737426647951,-503.66253139,0.00022328,3]
[349785220,1737426647964,-858.51,0.00022328,3]
[349785221,1737426647974,-500.0,0.00022328,3]
[349785222,1737426647983,-1608.96,0.00022328,3]
[349785223,1737426647992,-915.63,0.00022328,3]
[349785224,1737426648002,-1944.61,0.00022328,3]
[349785225,1737426648011,-500.0,0.00022328,3]
[349785226,1737426648020,-500.0,0.00022328,3]
[349785227,1737426648029,-812.47,0.00022328,3]
[349785228,1737426648040,-270.5773435,0.00022328,3]
[349785229,1737426648051,-500.0,0.00022328,3]
[349785230,1737426648060,-1628.29,0.00022328,3]
[349785231,1737426648069,-500.0,0.00022328,3]
[349785232,1737426648079,-644.11,0.00022328,3]
[349785233,1737426648089,-500.0,0.00022328,3]
[349785234,1737426648099,-500.0,0.00022328,3]
[349785235,1737426648108,-500.0,0.00022328,3]
[349785236,1737426648118,-424.97388911,0.00022328,3]
[349785237,1737426648127,-1360.32,0.00022328,3]
[349785238,1737426648137,-500.0,0.00022328,3]
[349785239,1737426648151,-933.1,0.00022328,3]
[349785240,1737426648161,-500.0,0.00022328,3]
[349785241,1737426648171,-500.0,0.00022328,3]
[349785242,1737426648181,-1140.59,0.00022328,3]
[349785243,1737426648191,-1077.41,0.00022328,3]
[349785244,1737426648200,-13759.94,0.00022328,3]
[349785245,1737426648210,-1021.91,0.00022328,3]
[349785246,1737426648220,-500.0,0.00022328,3]
[349785247,1737426648230,-1550.04,0.00022328,3]
[349785248,1737426648240,-2704.04,0.00022328,3]
[349785249,1737426648395,-500.0,0.00022328,3]
[349785250,1737426648407,-500.0,0.00022328,3]
[349785251,1737426648417,-714.36,0.00022328,3]
[349785252,1737426648427,-500.0,0.00022328,3]
[349785253,1737426648437,-500.0,0.00022328,3]
[349785254,1737426648446,-1914.83,0.00022328,3]
[349785255,1737426648456,-500.0,0.00022328,3]
[349785256,1737426648466,-931.03,0.00022328,3]
[349785257,1737426648475,-4795.93,0.00022328,3]
[349785258,1737426648485,-500.0,0.00022328,3]
[349785259,1737426648495,-4234.28,0.00022328,3]
[349785260,1737426648505,-3542.61,0.00022328,3]
[349785261,1737426648514,-500.0,0.00022328,3]
[349785262,1737426648524,-506.98571607,0.00022328,3]
[349785263,1737426648534,-8675.8,0.00022328,3]
[349785264,1737426648544,-500.0,0.00022328,3]
[349785265,1737426648553,-2200.0,0.00022328,3]
[349785266,1737426648563,-2085.5,0.00022328,3]
[349785267,1737426648573,-499.03686605,0.00022328,3]
[349785268,1737426648583,-500.0,0.00022328,3]
[349785269,1737426648592,-500.0,0.00022328,3]
[349785270,1737426648602,-500.0,0.00022328,3]
[349785271,1737426648612,-1517.04,0.00022328,3]
[349785272,1737426648622,-584.13,0.00022328,3]
[349785273,1737426648632,-500.0,0.00022328,3]
[349785274,1737426648643,-7258.81,0.00022328,3]
[349785275,1737426648653,-500.0,0.00022328,3]
[349785276,1737426648663,-500.0,0.00022328,3]
[349785277,1737426648673,-500.0,0.00022328,3]
[349785278,1737426648685,-500.0,0.00022328,3]
[349785279,1737426648695,-48036.61,0.00022328,3]
[349785280,1737426648705,-825.47,0.00022328,3]
[349785281,1737426648714,-2003.5,0.00022328,3]
[349785282,1737426648724,-2317.95,0.00022328,3]
[349785283,1737426648733,-500.0,0.00022328,3]
[349785284,1737426648743,-4115.87,0.00022328,3]
[349785285,1737426648752,-820.83,0.00022328,3]
[349785286,1737426648762,-599.04,0.00022328,3]
[349785287,1737426648771,-608.51,0.00022328,3]
[349785288,1737426648781,-500.0,0.00022328,3]
[349785289,1737426648790,-764.92,0.00022328,3]
[349785290,1737426648800,-1730.06,0.00022328,3]
[349785291,1737426648809,-500.0,0.00022328,3]
[349785292,1737426648818,-2424.69,0.00022328,3]
[349785293,1737426648828,-500.0,0.00022328,3]
[349785294,1737426648837,-5313.83146296,0.00022365,2]
[349785295,1737426648846,-500.0,0.00022373,2]
[349785296,1737426648856,-500.0,0.00022373,2]
[349785297,1737426648866,-500.0,0.00022373,2]
[349785298,1737426648875,-501.0591771,0.00022373,2]
[349785299,1737426648885,-218.66952456,0.00022373,2]
[349785300,1737426648897,-500.0,0.00022373,2]
[349785301,1737426648907,-500.0,0.00022373,2]
[349785302,1737426648917,-160.56864035,0.00022373,2]
[349785303,1737426648926,-353.8262533,0.00022411,2]
[349785304,1737426648936,-353.8262533,0.00022411,2]
[349785305,1737426648945,-500.0,0.00022465,3]
[349785306,1737426648957,-500.0,0.00022465,3]
[349785307,1737426648970,-614.4,0.00022465,3]
[349785308,1737426648979,-500.0,0.00022465,3]
[349785309,1737426648989,-500.0,0.00022465,3]
[349785310,1737426649000,-500.0,0.00022465,3]
[349785311,1737426649010,-500.0,0.00022465,3]
[349785312,1737426649019,-500.0,0.00022465,3]
[349785313,1737426649029,-500.0,0.00022465,3]
[349785314,1737426649041,-500.0,0.00022465,3]
[349785315,1737426649052,-500.0,0.00022465,3]
[349785316,1737426649062,-500.0,0.00022465,3]
[349785317,1737426649073,-500.0,0.00022465,3]
[349785318,1737426649083,-500.0,0.00022465,3]
[349785319,1737426649093,-500.0,0.00022465,3]
[349785320,1737426649103,-500.0,0.00022465,3]
[349785321,1737426649112,-500.0,0.00022465,3]
[349785322,1737426649122,-500.0,0.00022465,3]
[349785323,1737426649131,-500.0,0.00022465,3]
[349785324,1737426649141,-500.0,0.00022465,3]
[349785325,1737426649152,-500.0,0.00022465,3]
[349785326,1737426649162,-500.0,0.00022465,3]
[349785327,1737426649172,-500.0,0.00022465,3]
[349785328,1737426649182,-500.0,0.00022465,3]
[349785329,1737426649193,-500.0,0.00022465,3]
[349785330,1737426649203,-500.0,0.00022465,3]
[349785331,1737426649213,-500.0,0.00022465,3]
[349785332,1737426649224,-500.0,0.00022465,3]
[349785333,1737426649233,-500.0,0.00022465,3]
[349785334,1737426649242,-633.02159525,0.00022465,3]
[349785335,1737426649252,-1031.46,0.00022465,3]
[349785336,1737426649262,-500.0,0.00022465,3]
[349785337,1737426649272,-500.0,0.00022465,3]
[349785338,1737426649282,-446.25958705,0.00022465,3]